fUSD/lending_fUSD_20251019
["ID","MTS","AMOUNT","RATE_DAILY","PERIOD"]
[391847970,1760911841132,-500.0,0.00033221,8]
[391847971,1760911841145,-1000.0,0.00033221,30]
[391847972,1760911841155,-500.0,0.00033221,8]
[391847973,1760911841165,-500.0,0.00033221,8]
[391847974,1760911841311,-151.0,0.00033221,30]
[391847975,1760911841322,-151.0,0.00033221,30]
[391847976,1760911841332,-713.85,0.00033221,8]
[391847977,1760911841343,-151.0,0.00033221,30]
[391847978,1760911841353,-825.24,0.00033221,8]
[391847979,1760911841362,-504.57,0.00033221,8]
[391847980,1760911841371,-151.0,0.00033221,30]
[391847981,1760911841381,-169.65434,0.00033221,30]
[391847982,1760911841390,-151.0,0.00033221,30]
[391847983,1760911841400,-169.65434,0.00033221,30]
[391847984,1760911841410,-169.65434,0.00033221,30]
[391847985,1760911841419,-169.65434,0.00033221,30]
[391847986,1760911841429,-169.65434,0.00033221,30]
[391847987,1760911841438,-169.65434,0.00033221,30]
[391847988,1760911841447,-169.65434,0.00033221,30]
[391847989,1760911841457,-169.65434,0.00033221,30]
[391847990,1760911841467,-500.0,0.00033221,8]
[391847991,1760911841476,-151.0,0.00033221,30]
[391847992,1760911841487,-151.0,0.00033221,30]
[391847993,1760911841502,-151.0,0.00033221,30]
[391847994,1760911841512,-297.804652,0.00033221,30]
[391847995,1760911841522,-500.0,0.00033221,8]
[391847996,1760911841531,-500.0,0.00033221,8]
[391847997,1760911841542,-571.41,0.00033221,8]
[391847998,1760911841551,-500.0,0.00033221,8]
[391847999,1760911841561,-500.0,0.00033221,8]
[391848000,1760911841570,-934.88,0.00033221,8]
[391848001,1760911841580,-500.0,0.00033221,8]
[391848002,1760911841591,-751.07,0.00033221,8]
[391848003,1760911841600,-932.94,0.00033221,8]
[391848004,1760911841610,-577.41,0.00033221,8]
[391848005,1760911841620,-500.0,0.00033221,8]
[391848006,1760911841630,-3103.25,0.00033221,2]
[391848007,1760911841639,-500.0,0.00033221,8]
[391848008,1760911841649,-151.0,0.00033221,30]
[391848009,1760911841658,-500.0,0.00033221,8]
[391848010,1760911841668,-151.0,0.00033221,30]
[391848011,1760911841677,-151.0,0.00033221,30]
[391848012,1760911841688,-151.0,0.00033221,30]
[391848013,1760911841697,-269.387378,0.00033221,30]
[391848014,1760911841707,-300.0,0.00033221,8]
[391848015,1760911841717,-500.0,0.00033221,8]
[391848016,1760911841726,-418.13967508,0.00033221,8]
[391848017,1760911841736,-585.94,0.00033221,2]
[391848018,1760911841745,-55555.0,0.00033221,3]
[391848019,1760911841761,-27988.0919,0.00033222,2]
[391848020,1760911841774,-151.0,0.00033222,30]
[391848021,1760911841784,-151.0,0.00033222,30]
[391848022,1760911841794,-151.0,0.00033222,30]
[391848023,1760911841804,-151.0,0.00033222,30]
[391848024,1760911841814,-151.0,0.00033222,30]
[391848025,1760911841823,-151.0,0.00033222,30]
[391848026,1760911841834,-252.752262,0.00033222,30]
[391848027,1760911841844,-151.0,0.00033222,30]
[391848028,1760911841854,-151.0,0.00033222,30]
[391848029,1760911841864,-286.772835,0.00033222,30]
[391848030,1760911841874,-286.772835,0.00033222,30]
[391848031,1760911841884,-286.772835,0.00033222,30]
[391848032,1760911841893,-286.772835,0.00033222,30]
[391848033,1760911841903,-151.0,0.00033222,30]
[391848034,1760911841913,-151.0,0.00033222,30]
[391848035,1760911841923,-151.0,0.00033222,30]
[391848036,1760911841932,-151.0,0.00033222,30]
[391848037,1760911841941,-2600.0,0.00033251,7]
[391848038,1760911841951,-200.0,0.00033273,5]
[391848039,1760911841962,-900.0,0.00033287,7]
[391848040,1760911841971,-287.53042461,0.000333,3]
[391848041,1760911841981,-9299.31212177,0.00033303,2]
[391848042,1760911841990,-273.673539,0.00033311,30]
[391848043,1760911841999,-169.65434,0.00033311,30]
[391848044,1760911842008,-169.65434,0.00033311,30]
[391848045,1760911842018,-169.65434,0.00033311,30]
[391848046,1760911842027,-169.65434,0.00033311,30]
[391848047,1760911842037,-151.0,0.00033311,30]
[391848048,1760911842046,-151.0,0.00033311,30]
[391848049,1760911842056,-9299.31212177,0.00033311,2]
[391848050,1760911842064,-151.0,0.00033312,30]
[391848051,1760911842074,-151.0,0.00033312,30]
[391848052,1760911842085,-151.0,0.00033312,30]
[391848053,1760911842095,-151.0,0.00033312,30]
[391848054,1760911842107,-151.0,0.00033312,30]
[391848055,1760911842120,-5000.0,0.00033313,2]
[391848056,1760911842131,-533.0,0.00033319,5]
[391848057,1760911842144,-500.0,0.0003332,2]
[391848058,1760911842156,-500.0,0.0003332,8]
[391848059,1760911842170,-500.0,0.0003332,8]
[391848060,1760911842181,-500.0,0.0003332,8]
[391848061,1760911842194,-500.0,0.0003332,8]
[391848062,1760911842204,-500.0,0.00033321,8]
[391848063,1760911842214,-500.0,0.00033321,8]
[391848064,1760911842224,-500.0,0.00033321,8]
[391848065,1760911842236,-500.0,0.00033321,8]
[391848066,1760911842246,-500.0,0.00033321,8]
[391848067,1760911842256,-373.33156312,0.00033321,8]
[391848068,1760911842291,-126.66843688,0.00033321,8]
[391848069,1760911842300,-594.05,0.00033321,8]
[391848070,1760911842310,-500.0,0.00033321,8]
[391848071,1760911842321,-652.84,0.00033321,8]
[391848072,1760911842330,-500.0,0.00033321,8]
[391848073,1760911842345,-500.0,0.00033321,8]
[391848074,1760911842355,-606.14,0.00033321,8]
[391848075,1760911842365,-500.0,0.00033321,8]
[391848076,1760911842374,-500.0,0.00033321,8]
[391848077,1760911842384,-500.89,0.00033321,8]
[391848078,1760911842394,-500.0,0.00033321,8]
[391848079,1760911842404,-500.0,0.00033321,2]
[391848081,1760911842413,-500.0,0.00033321,8]
[391848083,1760911842424,-500.0,0.00033321,8]
[391848084,1760911842433,-500.0,0.00033321,8]
[391848085,1760911842443,-500.0,0.00033321,8]
[391848086,1760911842452,-500.0,0.00033321,8]
[391848087,1760911842463,-500.0,0.00033321,8]
[391848088,1760911842472,-574.71,0.00033321,8]
[391848089,1760911842481,-500.0,0.00033321,8]
[391848090,1760911842490,-151.0,0.00033321,30]
[391848091,1760911842499,-189.725263,0.00033321,30]
[391848092,1760911842509,-286.772835,0.00033321,30]
[391848093,1760911842519,-286.772835,0.00033321,30]
[391848094,1760911842529,-286.772835,0.00033321,30]
[391848095,1760911842538,-286.772835,0.00033321,30]
[391848096,1760911842548,-151.0,0.00033321,30]
[391848097,1760911842557,-222.42,0.00033321,7]
[391848098,1760911842567,-500.0,0.00033324,7]
[391848100,1760911842577,-900.0,0.00033342,7]
[391848101,1760911842588,-500.0,0.00033351,7]
[391848102,1760911842598,-1400.0,0.00033384,7]
[391848103,1760911842607,-151.0,0.00033413,30]
[391848104,1760911842617,-151.0,0.00033413,30]
[391848105,1760911842626,-151.0,0.00033413,30]
[391848106,1760911842636,-151.0,0.00033413,30]
[391848107,1760911842645,-206.554516,0.00033413,30]
[391848108,1760911842655,-151.0,0.00033413,30]
[391848109,1760911842664,-169.65434,0.00033442,30]
[391848110,1760911842673,-169.65434,0.00033442,30]
[391848111,1760911842683,-169.65434,0.00033442,30]
[391848112,1760911842692,-169.654335,0.00033442,30]
[391848113,1760911842705,-151.0,0.00033442,30]
[391848114,1760911842715,-151.0,0.00033442,30]
[391848115,1760911842724,-151.0,0.00033442,30]
[391848116,1760911842734,-151.0,0.00033442,30]
[391848117,1760911842744,-9299.31212177,0.00033442,2]
[391848118,1760911842753,-1195.52614355,0.00033447,2]
[391848119,1760911842763,-151.0,0.00033452,30]
[391848120,1760911842772,-2444.5411,0.00033452,10]
[391848121,1760911842782,-500.0,0.00033484,8]
[391848122,1760911842791,-500.0,0.00033484,8]
[391848123,1760911842800,-500.0,0.00033484,8]
[391848124,1760911842810,-500.0,0.00033484,8]
[391848125,1760911842820,-500.0,0.00033484,8]
[391848126,1760911842831,-503.9,0.00033484,8]
[391848127,1760911842842,-500.0,0.00033484,8]
[391848128,1760911842851,-500.0,0.00033484,8]
[391848129,1760911842860,-688.81,0.00033484,8]
[391848130,1760911842869,-151.0,0.00033485,30]
[391848131,1760911842879,-286.772835,0.00033485,30]
[391848132,1760911842896,-286.772835,0.00033485,30]
[391848133,1760911842909,-286.772835,0.00033485,30]
[391848134,1760911842924,-286.77283402,0.00033485,30]
[391848135,1760911842938,-500.0,0.00033485,8]
[391848136,1760911842951,-534.2735483,0.00033485,8]
[391848138,1760911842962,-500.0,0.00033485,8]
[391848140,1760911842973,-500.0,0.00033485,8]
[391848142,1760911842984,-500.0,0.00033485,8]
[391848144,1760911842996,-500.0,0.00033485,8]
[391848146,1760911843009,-274.39612312,0.00033485,2]
[391848149,1760911843021,-749.5,0.00033485,8]
[391848151,1760911843033,-18598.6242435,0.00033485,2]
[391848153,1760911843045,-300.0,0.00033494,10]
[391848156,1760911843058,-566.94,0.00033494,8]
[391848158,1760911843071,-500.0,0.00033494,8]
[391848160,1760911843082,-592.41,0.00033494,8]
[391848163,1760911843095,-500.0,0.00033494,8]
[391848165,1760911843107,-500.0,0.00033494,8]
[391848167,1760911843116,-500.0,0.00033494,8]
[391848169,1760911843126,-500.0,0.00033494,8]
[391848171,1760911843138,-500.0,0.00033494,8]
[391848173,1760911843150,-638.15019914,0.00033494,8]
[391848176,1760911843161,-639.88,0.00033494,8]
[391848178,1760911843172,-1000.0,0.00033494,8]
[391848180,1760911843184,-542.02,0.00033494,8]
[391848182,1760911843196,-500.0,0.00033494,8]
[391848185,1760911843207,-622.29,0.00033495,8]
[391848187,1760911843220,-500.0,0.00033495,8]
[391848189,1760911843232,-800.22,0.00033495,8]
[391848191,1760911843243,-500.0,0.00033495,8]
[391848193,1760911843256,-500.0,0.00033495,8]
[391848196,1760911843268,-754.23,0.00033495,8]
[391848198,1760911843284,-754.53,0.00033495,8]
[391848201,1760911843298,-500.0,0.00033495,8]
[391848203,1760911843310,-758.62,0.00033495,8]
[391848206,1760911843323,-300.0,0.00033495,2]
[391848208,1760911843335,-500.0,0.00033495,8]
[391848210,1760911843346,-505.17930253,0.00033495,8]
[391848212,1760911843358,-500.0,0.00033495,8]
[391848214,1760911843369,-500.0,0.00033495,8]
[391848215,1760911843381,-500.0,0.00033495,8]
[391848216,1760911843393,-500.0,0.00033495,8]
[391848217,1760911843404,-500.0,0.00033495,8]
[391848218,1760911843427,-500.0,0.00033495,8]
[391848219,1760911843440,-532.7,0.00033495,8]
[391848220,1760911843454,-1014.62454143,0.00033495,8]
[391848221,1760911843467,-500.0,0.00033495,8]
[391848222,1760911843481,-659.78,0.00033495,8]
[391848223,1760911843494,-500.0,0.00033495,8]
[391848224,1760911843507,-500.0,0.00033495,8]
[391848225,1760911843517,-500.0,0.00033495,2]
[391848226,1760911843529,-482.94831407,0.00033495,8]
[391848227,1760911843800,-209.57168593,0.00033495,8]
[391848228,1760911843811,-190.79,0.00033495,8]
[391848229,1760911843821,-500.0,0.00033495,8]
[391848230,1760911843831,-1000.0,0.00033495,30]
[391848231,1760911843844,-500.0,0.00033495,8]
[391848232,1760911843854,-500.0,0.00033495,8]
[391848233,1760911843864,-713.85,0.00033495,8]
[391848234,1760911843875,-825.24,0.00033495,8]
[391848235,1760911843885,-504.57,0.00033495,8]
[391848236,1760911843895,-500.0,0.00033495,8]
[391848237,1760911843905,-500.0,0.00033495,8]
[391848238,1760911843916,-500.0,0.00033495,8]
[391848239,1760911843926,-571.41,0.00033495,8]
[391848240,1760911843936,-631.83118263,0.00033495,8]
[391848241,1760911843947,-500.0,0.00033495,8]
[391848242,1760911843958,-934.88,0.00033495,8]
[391848243,1760911843968,-3.18628343,0.00033495,8]
[391848244,1760911843982,-496.81371657,0.00033495,8]
[391848245,1760911843993,-751.07,0.00033495,8]
[391848246,1760911844003,-932.94,0.00033495,8]
[391848247,1760911844014,-577.41,0.00033495,8]
[391848248,1760911844027,-500.0,0.00033495,8]
[391848249,1760911844037,-3103.25,0.00033495,2]
[391848250,1760911844048,-500.0,0.00033495,8]
[391848251,1760911844058,-500.0,0.00033495,8]
[391848252,1760911844068,-300.0,0.00033495,8]
[391848253,1760911844079,-500.0,0.00033495,8]
[391848254,1760911844090,-585.94,0.00033495,2]
[391848255,1760911844100,-153.0,0.00033498,2]
[391848256,1760911844111,-153.0,0.00033498,2]
[391848257,1760911844122,-153.0,0.00033499,2]
[391848258,1760911844133,-153.0,0.00033499,2]
[391848259,1760911844145,-153.0,0.00033499,2]
[391848260,1760911844156,-153.0,0.00033499,2]
[391848261,1760911844168,-153.0,0.00033502,2]
[391848262,1760911844179,-153.0,0.00033502,2]
[391848263,1760911844190,-153.0,0.00033502,2]
[391848264,1760911844202,-800.0,0.00033536,7]
[391848265,1760911844213,-500.0,0.00033543,7]
[391848266,1760911844224,-1818.05,0.00033549,7]
[391848267,1760911844233,-500.0,0.00033557,8]
[391848268,1760911844243,-151.0,0.00033558,30]
[391848269,1760911844252,-151.0,0.00033558,30]
[391848270,1760911844262,-151.0,0.00033558,30]
[391848271,1760911844272,-151.0,0.00033558,30]
[391848272,1760911844281,-5233.12523375,0.00033565,2]
[391848273,1760911844293,-337.27249606,0.00033565,2]
[391848279,1760911845721,-2480.999701,0.00033153,2]
[391848280,1760911845731,-2779.00029813,0.00033565,2]
[391848281,1760911845742,-671.21441449,0.00033565,2]
[391848282,1760911845753,-278.69967934,0.00033565,2]
[391848283,1760911845952,-150.0,0.00033573,5]
[391848284,1760911845969,-9299.31212177,0.00033576,2]
[391848285,1760911845984,-262.02318086,0.00033577,8]
[391848286,1760911845994,-4193.73964341,0.00033584,2]
[391848287,1760911846004,-300.0,0.00033584,10]
[391848288,1760911846014,-151.0,0.00033585,30]
[391848289,1760911846023,-99.32729318,0.00033585,2]
[391848290,1760911846035,-3726.09632765,0.00033585,2]
[391848291,1760911846046,-598.13357716,0.00033585,2]
[391848293,1760911861590,200.0,0.00034218,120]
[391848316,1760912163638,200.0,0.00034218,120]
[391848343,1760912363391,750.73595736,0.00034228,30]
[391848353,1760912460883,200.0,0.00034228,120]
[391848404,1760912761730,200.0,0.00034225,120]
[391848418,1760912874825,250.0,0.00034225,30]
[391848586,1760912902478,387.44344145,7.888e-05,2]
[391848628,1760912964100,162.38,0.0001083,2]
[391848630,1760912964309,162.38,0.00011815,2]
[391848631,1760912964519,162.38,0.00012799,2]
[391848674,1760913031715,-162.38,0.00013784,2]
[391848676,1760913031724,-162.38,0.00014768,2]
[391848678,1760913031734,-333.49,0.000149,2]
[391848680,1760913031775,-427.455,0.000149,2]
[391848681,1760913031786,-1535.67567761,0.000149,2]
[391848682,1760913031835,-3028.97606202,0.000149,2]
[391848683,1760913031844,-456.8451738,0.00014973,2]
[391848684,1760913031853,-252.71434976,0.00014973,2]
[391848685,1760913031865,-309.81435404,0.00014973,2]
[391848686,1760913031874,-500.0,0.00014973,2]
[391848687,1760913031884,-500.0,0.00014973,2]
[391848688,1760913031894,-173.40906323,0.0001499,2]
[391848689,1760913031903,-281.17169381,0.00014998,2]
[391848690,1760913031915,-18.82830619,0.00014998,2]
[391848691,1760913031924,-150.0,0.00014998,2]
[391848692,1760913031933,-169.58169381,0.00014999,2]
[391848693,1760913031944,-330.41830619,0.00014999,2]
[391848694,1760913031955,-155.94498161,0.00014999,2]
[391848695,1760913031964,-211.65071632,0.00014999,2]
[391848696,1760913031974,-509.73550466,0.00014999,2]
[391848697,1760913031983,-500.0,0.00014999,2]
[391848698,1760913031993,-500.0,0.00014999,2]
[391848699,1760913032002,-500.0,0.00014999,2]
[391848700,1760913032012,-500.0,0.00014999,2]
[391848702,1760913032022,-500.0,0.00014999,2]
[391848704,1760913032031,-500.0,0.00014999,2]
[391848706,1760913032041,-500.0,0.00014999,2]
[391848708,1760913032050,-255.371468,0.00014999,2]
[391848710,1760913032060,-347.82299156,0.00014999,2]
[391848712,1760913032072,-152.17700844,0.00014999,2]
[391848714,1760913032081,-500.0,0.00014999,2]
[391848716,1760913032091,-13.82299156,0.00015,2]
[391848717,1760913032103,-3166.82020646,0.00015,2]
[391848736,1760913037714,-172.56206533,0.00014973,2]
[391848738,1760913037723,-169.60498678,0.00015,2]
[391848740,1760913037734,-2261.22513277,0.00015,2]
[391848743,1760913037745,-26000.0,0.00015,2]
[391848745,1760913037756,-5314.35203336,0.00015,2]
[391848748,1760913037773,-392.87804499,0.00015,2]
[391848749,1760913037784,-787.348564,0.00015,2]
[391848750,1760913037795,-1733.86308309,0.00015,2]
[391848751,1760913037806,-3008.25683,0.00015,2]
[391848752,1760913037842,-443.5,0.00015,2]
[391848753,1760913037853,-2588.48432925,0.00015,2]
[391848754,1760913037863,-518.98264,0.00015,2]
[391848755,1760913037903,-4320.94963422,0.00015,2]
[391848757,1760913037915,-944.96660644,0.00015,2]
[391848944,1760913039796,-1674.38258997,0.00015,2]
[391849424,1760913044892,-141.04104994,0.00015,2]
[391849445,1760913045075,-314.085828,0.00015,2]
[391849522,1760913045856,-1007.73645,0.00015,2]
[391849524,1760913045867,-600.99453699,0.00015,2]
[391849682,1760913122134,-254.49,0.00013699,2]
[391849683,1760913122155,-527.164,0.000147,2]
[391849684,1760913122176,-172.46875824,0.000149,2]
[391849685,1760913122197,-16.85724176,0.000149,2]
[391849813,1760913771568,-421.731,0.000147,2]
[391849837,1760913902599,100000.0,0.00034347,30]
[391849838,1760913922931,-150.0,0.00013488,2]
[391849839,1760913922954,-66.80254705,0.00013488,2]
[391849840,1760913925797,-83.19745295,0.00013488,2]
[391849841,1760913925822,-74.07308264,0.00013488,2]
[391849842,1760913929578,-75.92691736,0.00013488,2]
[391849843,1760913929603,-166.99627086,0.00013488,2]
[391849844,1760913929627,-152.96244478,0.00013488,2]
[391849845,1760913931812,-67.22779868,0.00013488,2]
[391849846,1760913931836,-156.2684648,0.00013488,2]
[391849847,1760913931859,-106.32884806,0.00013488,2]
[391849848,1760913934773,-95.82406509,0.00013488,2]
[391849849,1760913934801,-154.37437212,0.00013488,2]
[391849850,1760913934824,-60.85156279,0.00013488,2]
[391849851,1760913936867,-89.79642687,0.00013488,2]
[391849852,1760913936892,-72.75873878,0.00013488,2]
[391849865,1760914009421,-80.8700435,0.00013488,2]
[391849866,1760914009448,-150.0,0.00013488,2]
[391849867,1760914009477,-156.60236015,0.00013488,2]
[391849868,1760914009506,-173.64098352,0.00014799,2]
[391849869,1760914009534,-1873.59775126,0.00014836,2]
[391849870,1760914009560,-1200.0,0.00014899,2]
[391849871,1760914009586,-300.0,0.00014899,2]
[391849872,1760914009610,-1200.0,0.00014899,2]
[391849873,1760914009634,-300.0,0.00014899,2]
[391849874,1760914009657,-458.37640306,0.000149,2]
[391849875,1760914009681,-3543.42000768,0.000149,2]
[391849876,1760914009705,-161.28311447,0.000149,2]
[391849877,1760914009729,-402.20933636,0.00014951,2]
[391849883,1760914049720,-171.47435778,0.000149,2]
[391849884,1760914049743,-2615.81968144,0.00014951,2]
[391849885,1760914049766,-150.0,0.00014972,2]
[391849886,1760914049788,-508.90027563,0.00014973,2]
[391849887,1760914049809,-500.0,0.00014973,2]
[391849888,1760914049830,-500.0,0.00014973,2]
[391849889,1760914049853,-471.79906783,0.00014973,2]
[391849890,1760914049876,-500.0,0.00014973,2]
[391849891,1760914049899,-500.0,0.00014973,2]
[391849892,1760914049922,-500.0,0.00014973,2]
[391849893,1760914049943,-1117.04,0.00014973,2]
[391849894,1760914049966,-182.23088543,0.0001499,2]
[391849895,1760914049992,-528.37460756,0.00014998,2]
[391849896,1760914050015,-579.70992527,0.00014999,2]
[391849897,1760914050038,-1666.55,0.00014999,2]
[391849898,1760914050060,-1666.55,0.00014999,2]
[391849899,1760914050083,-1666.55,0.00014999,2]
[391849900,1760914050106,-1666.55,0.00014999,2]
[391849901,1760914050130,-1666.55,0.00014999,2]
[391849902,1760914050153,-1666.55,0.00014999,2]
[391849903,1760914050176,-1175.35119906,0.00014999,2]
[391849905,1760914075851,-4981.91278617,0.000149,2]
[391849906,1760914075874,-500.0,0.00014973,2]
[391849907,1760914075895,-491.19880094,0.00014999,2]
[391849908,1760914075917,-150.0,0.00014999,2]
[391849909,1760914075941,-159.47467106,0.00014999,2]
[391849910,1760914075963,-150.0,0.00014999,2]
[391849911,1760914075985,-500.0,0.00014999,2]
[391849912,1760914076007,-212.98,0.00014999,2]
[391849913,1760914076030,-150.0,0.00014999,2]
[391849914,1760914076052,-152.48697328,0.00014999,2]
[391849915,1760914076074,-159.7560713,0.00014999,2]
[391849916,1760914076098,-150.0,0.00014999,2]
[391849917,1760914076122,-150.0,0.00014999,2]
[391849918,1760914076146,-175.60974485,0.00014999,2]
[391849919,1760914076169,-500.0,0.00014999,2]
[391849920,1760914076192,-635.16,0.00014999,2]
[391849921,1760914076215,-500.0,0.00014999,2]
[391849922,1760914076239,-281.4209524,0.00014999,2]
[391849923,1760914084246,-218.5790476,0.00014999,2]
[391849924,1760914084268,-500.0,0.00014999,2]
[391849925,1760914084290,-500.0,0.00014999,2]
[391849926,1760914084312,-500.0,0.00014999,2]
[391849927,1760914084335,-300.0,0.00014999,2]
[391849928,1760914084356,-150.0,0.00014999,2]
[391849929,1760914084379,-7831.4209524,0.00015,2]
[391849930,1760914091445,-10000.0,0.00015,2]
[391849931,1760914105084,-150.17956968,0.00015,3]
[391849936,1760914112727,-500.0,0.00014999,2]
[391849937,1760914112751,-9349.82043032,0.00015,2]
[391849939,1760914131390,-1201.31,0.00014999,2]
[391849940,1760914131412,-1201.31,0.00014999,2]
[391849942,1760914131684,-1201.31,0.00014999,2]
[391849943,1760914131708,-1201.31,0.00014999,2]
[391849944,1760914131731,-1201.31,0.00014999,2]
[391849945,1760914131753,-500.0,0.00014999,2]
[391849946,1760914131776,-1201.31,0.00014999,2]
[391849947,1760914131798,-1201.31,0.00014999,2]
[391849948,1760914131821,-18556.83,0.00015,2]
[391849954,1760914152362,-300.0,0.00014999,2]
[391849955,1760914152385,-500.0,0.00014999,2]
[391849956,1760914152409,-9000.0,0.00015,2]
[391849962,1760914198660,-500.0,0.00014999,2]
[391849963,1760914198685,-500.0,0.00014999,2]
[391849964,1760914198713,-350.0,0.00014999,2]
[391849965,1760914198742,-500.0,0.00014999,2]
[391849966,1760914198770,-500.0,0.00014999,2]
[391849967,1760914198797,-500.0,0.00014999,2]
[391849968,1760914198825,-300.0,0.00014999,2]
[391849969,1760914198852,-1850.0,0.00015,2]
[391849970,1760914227502,-182.23088544,0.0001499,2]
[391849971,1760914227526,-300.0,0.00014998,2]
[391849972,1760914227550,-500.0,0.00014999,2]
[391849973,1760914227577,-500.0,0.00014999,2]
[391849974,1760914227604,-500.0,0.00014999,2]
[391849975,1760914227631,-350.0,0.00014999,2]
[391849976,1760914227657,-500.0,0.00014999,2]
[391849977,1760914227683,-167.76911456,0.00014999,2]
[391849981,1760914231949,-332.23088544,0.00014999,2]
[391849982,1760914231958,-137.57700222,0.00014999,2]
[391849983,1760914232011,-362.42299778,0.00014999,2]
[391849984,1760914232020,-165.0,0.00014999,2]
[391849985,1760914232030,-2424.37079522,0.00015,2]
[391849986,1760914232072,-253490.74993917,0.00015,2]
[391849987,1760914232083,-12756.29818301,0.00015,2]
[391849988,1760914232133,-5932.55622335,0.00015,2]
[391849989,1760914232145,-877.56,0.00015,2]
[391849992,1760914232217,-256823.08920597,0.00015,2]
[391849994,1760914232228,-313.0,0.00015,2]
[391850005,1760914237835,-500.0,0.00014999,2]
[391850007,1760914237845,-500.0,0.00014999,2]
[391850008,1760914237854,-10887.97770324,0.00015,2]
[391850009,1760914237895,-477.84817929,0.00015,2]
[391850010,1760914237953,-873.8621171,0.00015,2]
[391850011,1760914237966,-1930.63445,0.00015,2]
[391850012,1760914237977,-111000.41590159,0.00015,2]
[391850137,1760914240813,-2190.0445719,0.00015,2]
[391850138,1760914240824,-283250.17121017,0.00015,2]
[391850139,1760914240833,-365868.8623784,0.00015,2]
[391850140,1760914240843,-320986.71933452,0.00015,2]
[391850141,1760914240852,-160.0,0.00015,2]
[391850142,1760914240861,-1117.04,0.00015247,2]
[391850143,1760914240870,-1117.04,0.00015521,2]
[391850144,1760914240879,-162.38,0.00015753,2]
[391850145,1760914240888,-1117.04,0.00015795,2]
[391850146,1760914240897,-1117.04,0.00016068,2]
[391850147,1760914240906,-255.0,0.00016124,2]
[391850148,1760914240916,-10527.29168653,0.000162,5]
[391850149,1760914240929,-1117.04,0.00016342,2]
[391850150,1760914240938,-420.0,0.00016415,2]
[391850151,1760914240947,-606.91463642,0.00016438,2]
[391850152,1760914240956,-250.0,0.00016498,2]
[391850153,1760914240967,-1117.04,0.00016616,2]
[391850154,1760914240976,-162.38,0.00016737,2]
[391850155,1760914240986,-1117.04138751,0.0001689,2]
[391850156,1760914240996,-250.0,0.00017,2]
[391850157,1760914241005,-3543.42000761,0.0001705,2]
[391850158,1760914241014,-4981.9127861,0.0001705,2]
[391850159,1760914241024,-200.0,0.00017274,2]
[391850160,1760914241033,-433.0,0.00017339,2]
[391850161,1760914241043,-162.38,0.00017722,2]
[391850162,1760914241052,-266.0,0.00017965,2]
[391850163,1760914241061,-164.65,0.00017973,2]
[391850164,1760914241070,-457.0,0.00018629,2]
[391850165,1760914241079,-162.38,0.00018707,2]
[391850166,1760914241088,-300.0,0.00019,2]
[391850167,1760914241097,-21996.77060668,0.00019,2]
[391850168,1760914241106,-433.0,0.00019,2]
[391850169,1760914241116,-176.40682781,0.00019,2]
[391850170,1760914241125,-433.0,0.00019055,2]
[391850171,1760914241134,-433.0,0.0001911,2]
[391850172,1760914241143,-659.928068,0.0001911,2]
[391850173,1760914241151,-659.928068,0.0001911,2]